fUSD/lending_fUSD_20241221
["ID","MTS","AMOUNT","RATE_DAILY","PERIOD"]
[346166454,1734762670656,-500.0,0.00022216,2]
[346166455,1734762670666,-516.64,0.00022216,2]
[346166456,1734762670675,-500.0,0.00022216,2]
[346166457,1734762670685,-3735.43,0.00022216,2]
[346166458,1734762670695,-723.58,0.00022216,2]
[346166459,1734762670705,-728.98,0.00022216,2]
[346166460,1734762670715,-1019.24,0.00022216,2]
[346166461,1734762670725,-500.0,0.00022216,2]
[346166462,1734762670735,-1102.65,0.00022216,2]
[346166463,1734762670745,-1138.9,0.00022216,2]
[346166464,1734762670758,-1430.94,0.00022216,2]
[346166465,1734762670768,-500.0,0.00022216,2]
[346166466,1734762670778,-964.36,0.00022216,2]
[346166467,1734762670787,-500.0,0.00022216,2]
[346166468,1734762670799,-1552.92,0.00022216,2]
[346166469,1734762670809,-500.0,0.00022216,2]
[346166470,1734762670819,-927.04,0.00022216,2]
[346166471,1734762670829,-500.0,0.00022216,2]
[346166472,1734762670840,-500.0,0.00022216,2]
[346166473,1734762670850,-500.0,0.00022216,2]
[346166474,1734762670859,-500.0,0.00022216,2]
[346166475,1734762670869,-1121.11,0.00022216,2]
[346166476,1734762670879,-500.0,0.00022216,2]
[346166477,1734762670894,-500.0,0.00022216,2]
[346166478,1734762670904,-500.0,0.00022216,2]
[346166479,1734762670914,-286.95167039,0.00022216,2]
[346166480,1734762670924,-500.0,0.00022216,2]
[346166481,1734762670934,-1064.2,0.00022216,2]
[346166482,1734762670944,-2196.67,0.00022216,2]
[346166483,1734762670954,-500.0,0.00022216,2]
[346166484,1734762670967,-500.0,0.00022216,2]
[346166485,1734762670977,-500.0,0.00022216,2]
[346166486,1734762670987,-1196.09,0.00022216,2]
[346166487,1734762670996,-1921.07,0.00022216,2]
[346166488,1734762671006,-500.0,0.00022216,2]
[346166489,1734762671016,-500.0,0.00022216,2]
[346166490,1734762671026,-796.27,0.00022216,2]
[346166491,1734762671035,-4024.68,0.00022216,2]
[346166492,1734762671048,-500.0,0.00022216,2]
[346166493,1734762671057,-500.0,0.00022216,2]
[346166494,1734762671068,-2898.52,0.00022216,2]
[346166495,1734762671078,-500.0,0.00022216,2]
[346166496,1734762671088,-500.0,0.00022216,2]
[346166497,1734762671098,-500.0,0.00022216,2]
[346166498,1734762671289,-500.0,0.00022216,2]
[346166499,1734762671301,-500.0,0.00022216,2]
[346166500,1734762671311,-5761.58,0.00022216,2]
[346166501,1734762671320,-250.53686294,0.00022216,2]
[346166502,1734762671329,-569.51,0.00022216,2]
[346166503,1734762671338,-500.0,0.00022216,2]
[346166504,1734762671347,-599.96,0.00022216,2]
[346166505,1734762671356,-763.04,0.00022216,2]
[346166506,1734762671365,-2296.3,0.00022216,2]
[346166507,1734762671375,-528.37,0.00022216,2]
[346166508,1734762671384,-500.0,0.00022216,2]
[346166509,1734762671393,-705.86,0.00022216,2]
[346166510,1734762671402,-500.0,0.00022216,2]
[346166511,1734762671412,-500.0,0.00022216,2]
[346166512,1734762671421,-949.95,0.00022216,2]
[346166513,1734762671430,-500.0,0.00022216,2]
[346166514,1734762671440,-500.0,0.00022216,2]
[346166515,1734762671449,-543.65980289,0.00022216,2]
[346166516,1734762671459,-500.0,0.00022216,2]
[346166517,1734762671468,-500.0,0.00022216,2]
[346166518,1734762671477,-500.0,0.00022217,2]
[346166519,1734762671486,-500.0,0.00022217,2]
[346166520,1734762671496,-500.0,0.00022217,2]
[346166521,1734762671505,-807.82,0.00022217,2]
[346166522,1734762671515,-500.0,0.00022217,2]
[346166523,1734762671524,-500.0,0.00022217,2]
[346166524,1734762671534,-500.0,0.00022217,2]
[346166525,1734762671543,-500.0,0.00022217,2]
[346166526,1734762671552,-500.0,0.00022217,2]
[346166527,1734762671562,-539.8,0.00022217,2]
[346166528,1734762671571,-500.0,0.00022217,2]
[346166529,1734762671580,-500.0,0.00022217,2]
[346166530,1734762671590,-500.0,0.00022217,2]
[346166531,1734762671601,-500.0,0.00022217,2]
[346166532,1734762671611,-500.0,0.00022217,2]
[346166533,1734762671621,-500.0,0.00022217,2]
[346166534,1734762671630,-500.0,0.00022217,2]
[346166535,1734762671640,-521.61004952,0.00022217,2]
[346166536,1734762671650,-500.0,0.00022217,2]
[346166537,1734762671659,-500.0,0.00022217,2]
[346166538,1734762671668,-500.0,0.00022217,2]
[346166539,1734762671678,-500.0,0.00022217,2]
[346166540,1734762671688,-500.0,0.00022217,2]
[346166541,1734762671698,-553.59655146,0.00022217,2]
[346166542,1734762671707,-500.0,0.00022217,2]
[346166543,1734762671717,-500.0,0.00022217,2]
[346166544,1734762671727,-500.0,0.00022217,2]
[346166545,1734762671736,-678.61,0.00022217,2]
[346166546,1734762671745,-500.0,0.00022217,2]
[346166547,1734762671755,-500.0,0.00022217,2]
[346166548,1734762671765,-500.0,0.00022217,2]
[346166549,1734762671774,-500.0,0.00022217,2]
[346166550,1734762671784,-500.0,0.00022217,2]
[346166551,1734762671794,-195.66548989,0.00022217,2]
[346166552,1734762671805,-500.0,0.00022217,2]
[346166553,1734762671815,-500.0,0.00022217,2]
[346166554,1734762671824,-500.0,0.00022217,2]
[346166555,1734762671833,-500.0,0.00022217,2]
[346166556,1734762671843,-500.0,0.00022217,2]
[346166557,1734762671852,-500.0,0.00022217,2]
[346166558,1734762671861,-500.0,0.00022217,2]
[346166559,1734762671871,-500.0,0.00022217,2]
[346166560,1734762671881,-520.11,0.00022217,2]
[346166561,1734762671894,-791.11,0.00022217,2]
[346166562,1734762671904,-500.0,0.00022217,2]
[346166563,1734762671913,-500.0,0.00022217,2]
[346166564,1734762671922,-500.0,0.00022217,2]
[346166565,1734762671933,-500.0,0.00022217,2]
[346166566,1734762671942,-500.0,0.00022217,2]
[346166567,1734762671952,-500.0,0.00022217,2]
[346166568,1734762671961,-500.0,0.00022217,2]
[346166569,1734762671972,-500.0,0.00022217,2]
[346166570,1734762671982,-509.34082704,0.00022217,2]
[346166571,1734762671991,-500.0,0.00022217,2]
[346166572,1734762672000,-500.0,0.00022217,2]
[346166573,1734762672009,-513.71946894,0.00022217,2]
[346166574,1734762672019,-500.0,0.00022217,2]
[346166575,1734762672029,-828.79,0.00022217,2]
[346166576,1734762672038,-500.0,0.00022217,2]
[346166577,1734762672049,-500.0,0.00022217,2]
[346166578,1734762672060,-685.6,0.00022217,2]
[346166579,1734762672070,-840.52,0.00022217,2]
[346166580,1734762672079,-709.51,0.00022217,2]
[346166581,1734762672088,-500.0,0.00022217,2]
[346166582,1734762672097,-611.60472535,0.00022217,2]
[346166583,1734762672107,-500.0,0.00022217,2]
[346166584,1734762672116,-500.0,0.00022217,2]
[346166585,1734762672125,-500.0,0.00022217,2]
[346166586,1734762672135,-701.1,0.00022217,2]
[346166587,1734762672144,-500.0,0.00022217,2]
[346166588,1734762672152,-500.0,0.00022217,2]
[346166589,1734762672162,-500.0,0.00022217,2]
[346166590,1734762672171,-725.66,0.00022217,2]
[346166591,1734762672180,-500.0,0.00022217,2]
[346166592,1734762672190,-500.0,0.00022217,2]
[346166593,1734762672199,-500.0,0.00022217,2]
[346166594,1734762672209,-1143.13,0.00022217,2]
[346166595,1734762672219,-500.0,0.00022217,2]
[346166596,1734762672229,-500.0,0.00022217,2]
[346166597,1734762672239,-500.0,0.00022217,2]
[346166598,1734762672248,-500.0,0.00022217,2]
[346166599,1734762672257,-603.15,0.00022217,2]
[346166600,1734762672266,-678.78,0.00022217,2]
[346166601,1734762672275,-500.0,0.00022217,2]
[346166602,1734762672285,-528.35585608,0.00022217,2]
[346166603,1734762672298,-841.91,0.00022217,2]
[346166604,1734762672307,-649.52,0.00022217,2]
[346166605,1734762672317,-500.0,0.00022217,2]
[346166606,1734762672326,-542.57059848,0.00022217,2]
[346166607,1734762672335,-500.0,0.00022217,2]
[346166608,1734762672345,-502.93,0.00022217,2]
[346166609,1734762672354,-656.01,0.00022217,2]
[346166610,1734762672363,-500.0,0.00022217,2]
[346166611,1734762672373,-500.0,0.00022217,2]
[346166612,1734762672382,-163.00353362,0.00022217,2]
[346166613,1734762672392,-685.45,0.00022217,2]
[346166614,1734762672402,-500.0,0.00022217,2]
[346166615,1734762672411,-574.94255835,0.00022217,2]
[346166616,1734762672420,-500.0,0.00022217,2]
[346166617,1734762672429,-500.0,0.00022217,2]
[346166618,1734762672439,-535.87,0.00022217,2]
[346166619,1734762672448,-500.0,0.00022217,2]
[346166620,1734762672457,-500.0,0.00022217,2]
[346166621,1734762672467,-500.0,0.00022217,2]
[346166622,1734762672476,-654.05,0.00022217,2]
[346166623,1734762672485,-500.0,0.00022217,2]
[346166624,1734762672495,-500.0,0.00022217,2]
[346166625,1734762672504,-686.75,0.00022217,2]
[346166626,1734762672513,-500.0,0.00022217,2]
[346166627,1734762672522,-500.0,0.00022217,2]
[346166628,1734762672532,-500.0,0.00022217,2]
[346166629,1734762672541,-500.0,0.00022217,2]
[346166630,1734762672554,-500.0,0.00022217,2]
[346166631,1734762672564,-752.24,0.00022217,2]
[346166632,1734762672573,-500.0,0.00022217,2]
[346166633,1734762672583,-500.0,0.00022217,2]
[346166634,1734762672594,-838.97,0.00022217,2]
[346166635,1734762672603,-584.97,0.00022217,2]
[346166636,1734762672613,-862.22,0.00022217,2]
[346166637,1734762672622,-560.72073576,0.00022217,2]
[346166638,1734762672631,-500.0,0.00022217,2]
[346166639,1734762672641,-500.0,0.00022217,2]
[346166640,1734762672650,-500.0,0.00022217,2]
[346166641,1734762672659,-500.0,0.00022217,2]
[346166642,1734762672668,-1083.25,0.00022217,2]
[346166643,1734762672678,-500.0,0.00022217,2]
[346166644,1734762672687,-500.0,0.00022217,2]
[346166645,1734762672696,-1191.44,0.00022217,2]
[346166646,1734762672705,-367.52622377,0.00022217,2]
[346166647,1734762672714,-500.0,0.00022217,2]
[346166648,1734762672724,-500.0,0.00022217,2]
[346166649,1734762672733,-644.53,0.00022217,2]
[346166650,1734762672743,-938.83,0.00022217,2]
[346166651,1734762672752,-832.26,0.00022217,2]
[346166652,1734762672761,-500.0,0.00022217,2]
[346166653,1734762672770,-500.0,0.00022217,2]
[346166654,1734762672779,-1185.23,0.00022217,2]
[346166655,1734762672788,-1190.69,0.00022217,2]
[346166656,1734762672799,-873.43,0.00022217,2]
[346166657,1734762672809,-794.04,0.00022217,2]
[346166658,1734762672818,-799.54,0.00022217,2]
[346166659,1734762672827,-1276.64,0.00022217,2]
[346166660,1734762672837,-887.53,0.00022217,2]
[346166661,1734762672846,-631.09,0.00022217,2]
[346166662,1734762672856,-500.0,0.00022217,2]
[346166663,1734762672865,-1335.02,0.00022217,2]
[346166664,1734762672875,-970.43,0.00022217,2]
[346166665,1734762672885,-1403.65,0.00022217,2]
[346166666,1734762672898,-500.0,0.00022217,2]
[346166667,1734762672908,-517.39,0.00022218,2]
[346166668,1734762672918,-500.0,0.00022218,2]
[346166669,1734762672927,-500.0,0.00022218,2]
[346166670,1734762672937,-500.0,0.00022218,2]
[346166671,1734762672946,-500.0,0.00022218,2]
[346166672,1734762672955,-853.87,0.00022218,2]
[346166673,1734762672964,-616.56,0.00022218,2]
[346166674,1734762672974,-500.0,0.00022218,2]
[346166675,1734762672983,-500.0,0.00022218,2]
[346166676,1734762672992,-500.0,0.00022218,2]
[346166677,1734762673001,-500.0,0.00022218,2]
[346166678,1734762673011,-1017.58,0.00022219,7]
[346166679,1734762673020,-1017.58,0.00022219,7]
[346166680,1734762673029,-1017.58,0.00022219,7]
[346166681,1734762673038,-1017.58,0.00022219,7]
[346166682,1734762673048,-1017.58,0.00022219,7]
[346166683,1734762673057,-1017.58,0.00022219,7]
[346166684,1734762673066,-1017.58,0.00022219,7]
[346166685,1734762673075,-1017.58,0.00022219,7]
[346166686,1734762673084,-1017.58,0.00022219,7]
[346166687,1734762673093,-1017.58,0.00022219,7]
[346166688,1734762673102,-1017.58,0.00022219,7]
[346166689,1734762673111,-1017.58,0.00022219,7]
[346166690,1734762673120,-1017.58,0.00022219,7]
[346166691,1734762673129,-1017.58,0.00022219,7]
[346166692,1734762673139,-1017.58,0.00022219,7]
[346166693,1734762673147,-1017.58,0.00022219,7]
[346166694,1734762673156,-1017.58,0.00022219,7]
[346166695,1734762673166,-1017.58,0.00022219,7]
[346166696,1734762673175,-1017.58,0.00022219,7]
[346166697,1734762673184,-1017.58,0.00022219,7]
[346166698,1734762673194,-1017.58,0.00022219,7]
[346166699,1734762673203,-1017.58,0.00022219,7]
[346166700,1734762673212,-1017.58,0.00022219,7]
[346166701,1734762673222,-1017.59849738,0.00022219,7]
[346166702,1734762673232,-200.0,0.0002222,2]
[346166703,1734762673241,-200.0,0.0002222,2]
[346166704,1734762673253,-2000.0,0.0002222,2]
[346166705,1734762673263,-200.0,0.0002222,2]
[346166706,1734762673275,-2000.0,0.0002222,2]
[346166707,1734762673284,-200.0,0.0002222,2]
[346166708,1734762673294,-3541.848,0.00022221,2]
[346166709,1734762673304,-222.302,0.00022221,2]
[346166710,1734762673313,-1500.0,0.00022229,2]
[346166711,1734762673323,-150.0,0.00022232,2]
[346166712,1734762673332,-150.0,0.00022233,2]
[346166713,1734762673342,-218.0,0.00022236,2]
[346166714,1734762673350,-150.0,0.00022236,2]
[346166715,1734762673359,-150.0,0.00022237,2]
[346166716,1734762673369,-1500.0,0.00022239,2]
[346166717,1734762673378,-1500.0,0.0002224,2]
[346166718,1734762673388,-150.0,0.00022241,2]
[346166719,1734762673397,-150.0,0.00022243,2]
[346166720,1734762673405,-150.0,0.00022249,2]
[346166721,1734762673415,-150.0,0.00022255,2]
[346166722,1734762673424,-150.0,0.00022257,2]
[346166723,1734762673433,-150.0,0.00022271,2]
[346166724,1734762673442,-500.0,0.00022273,2]
[346166725,1734762673452,-1452.02851811,0.00022274,2]
[346166726,1734762673461,-150.0,0.00022274,2]
[346166727,1734762673470,-150.0,0.00022276,2]
[346166728,1734762673480,-150.0,0.00022279,2]
[346166729,1734762673489,-150.0,0.0002228,2]
[346166730,1734762673498,-150.0,0.0002228,2]
[346166731,1734762673507,-150.0,0.00022286,2]
[346166732,1734762673516,-150.0,0.00022287,2]
[346166733,1734762673526,-538.36945,0.00022288,7]
[346166734,1734762673537,-150.0,0.00022294,2]
[346166735,1734762673546,-150.0,0.00022296,2]
[346166736,1734762673557,-1011.97,0.00022298,2]
[346166737,1734762673566,-1011.03,0.00022298,2]
[346166738,1734762673575,-150.0,0.00022309,2]
[346166739,1734762673584,-150.0,0.00022315,2]
[346166740,1734762673594,-150.0,0.00022318,2]
[346166741,1734762673604,-150.0,0.0002232,2]
[346166742,1734762673614,-2130.83,0.00022322,7]
[346166743,1734762673623,-2130.83,0.00022322,7]
[346166744,1734762673633,-2130.83,0.00022322,7]
[346166745,1734762673643,-2130.83,0.00022322,7]
[346166746,1734762673652,-150.0,0.00022325,2]
[346166747,1734762673662,-150.0,0.00022326,2]
[346166748,1734762673671,-150.0,0.00022327,2]
[346166749,1734762673680,-500.0,0.00022328,3]
[346166750,1734762673690,-500.0,0.00022328,3]
[346166751,1734762673699,-993.08,0.00022328,3]
[346166752,1734762673708,-1501.95,0.00022328,3]
[346166753,1734762673718,-150.0,0.00022329,2]
[346166754,1734762673727,-150.0,0.00022331,2]
[346166755,1734762673736,-150.0,0.00022337,2]
[346166756,1734762673746,-150.0,0.00022346,2]
[346166757,1734762673755,-150.0,0.0002235,2]
[346166758,1734762673764,-150.0,0.00022352,2]
[346166759,1734762673774,-1500.0,0.00022355,2]
[346166760,1734762673783,-150.0,0.00022365,2]
[346166761,1734762673793,-150.0,0.00022365,2]
[346166762,1734762673802,-150.0,0.00022367,2]
[346166763,1734762673812,-150.0,0.00022369,2]
[346166764,1734762673821,-150.0,0.00022371,2]
[346166765,1734762673830,-150.0,0.00022372,2]
[346166766,1734762673839,-150.0,0.00022377,2]
[346166767,1734762673849,-150.0,0.00022379,2]
[346166768,1734762673858,-150.0,0.00022379,2]
[346166769,1734762673867,-150.0,0.00022381,2]
[346166770,1734762673876,-1452.02851811,0.00022384,2]
[346166771,1734762673887,-800.0,0.00022384,2]
[346166772,1734762673898,-800.0,0.00022384,2]
[346166773,1734762673907,-150.0,0.00022392,2]
[346166774,1734762673917,-150.0,0.00022393,2]
[346166775,1734762673927,-150.0,0.00022395,2]
[346166776,1734762673936,-150.0,0.00022396,2]
[346166777,1734762673945,-1007.77,0.00022397,2]
[346166778,1734762673955,-994.4,0.00022398,2]
[346166779,1734762673966,-1852.03440299,0.00022399,10]
[346166780,1734762673975,-8006.92369079,0.000224,30]
[346166781,1734762673984,-150.0,0.000224,2]
[346166782,1734762673994,-150.0,0.000224,2]
[346166783,1734762674003,-185.50967466,0.000224,2]
[346166784,1734762674011,-3574.97424865,0.000224,2]
[346166785,1734762674020,-211.0929626,0.000224,2]
[346166786,1734762674030,-582.37083178,0.000224,2]
[346166787,1734762674039,-150.0,0.00022402,2]
[346166788,1734762674051,-150.0,0.00022403,2]
[346166789,1734762674060,-152.0,0.00022403,4]
[346166790,1734762674070,-150.0,0.00022405,2]
[346166791,1734762674079,-150.0,0.00022406,2]
[346166792,1734762674090,-500.0,0.0002241,2]
[346166793,1734762674100,-150.0,0.00022412,2]
[346166794,1734762674110,-150.0,0.00022412,2]
[346166795,1734762674120,-1000.0,0.00022421,2]
[346166796,1734762674130,-150.0,0.00022421,2]
[346166797,1734762674140,-150.0,0.00022423,2]
[346166798,1734762674150,-150.0,0.00022423,2]
[346166799,1734762674159,-150.0,0.00022425,2]
[346166800,1734762674169,-150.0,0.00022425,2]
[346166801,1734762674178,-150.0,0.00022425,2]
[346166802,1734762674188,-201.8,0.0002243,2]
[346166803,1734762674197,-231.06566,0.00022431,2]
[346166804,1734762674206,-150.0,0.00022432,2]
[346166805,1734762674217,-150.0,0.00022432,2]
[346166806,1734762674227,-150.0,0.00022434,2]
[346166807,1734762674236,-2000.0,0.00022442,2]
[346166808,1734762674245,-200.0,0.00022442,2]
[346166809,1734762674255,-2000.0,0.00022442,2]
[346166810,1734762674265,-200.0,0.00022442,2]
[346166811,1734762674275,-150.0,0.00022443,2]
[346166812,1734762674284,-150.0,0.00022451,2]
[346166813,1734762674296,-614.08,0.00022453,2]
[346166814,1734762674307,-150.0,0.00022453,2]
[346166815,1734762674317,-150.0,0.00022454,2]
[346166816,1734762674327,-150.0,0.00022456,2]
[346166817,1734762674337,-150.0,0.00022461,2]
[346166818,1734762674347,-150.0,0.00022463,2]
[346166819,1734762674357,-150.0,0.00022464,2]
[346166820,1734762674367,-1079.97,0.00022465,2]
[346166821,1734762674376,-1224.45,0.00022465,2]
[346166822,1734762674385,-2176.47,0.00022465,2]
[346166823,1734762674395,-943.01,0.00022465,2]
[346166824,1734762674405,-1534.27,0.00022465,2]
[346166825,1734762674415,-3068.89,0.00022465,2]
[346166826,1734762674425,-2229.29,0.00022465,2]
[346166827,1734762674434,-1660.81,0.00022465,2]
[346166828,1734762674444,-2717.75,0.00022465,2]
[346166829,1734762674454,-2210.95,0.00022465,2]
[346166830,1734762674463,-1874.61,0.00022465,2]
[346166831,1734762674472,-500.0,0.00022465,2]
[346166832,1734762674481,-3498.34,0.00022465,2]
[346166833,1734762674490,-1932.17,0.00022465,2]
[346166834,1734762674499,-500.0,0.00022465,2]
[346166835,1734762674509,-1354.83,0.00022465,2]
[346166836,1734762674518,-500.0,0.00022465,2]
[346166837,1734762674527,-10318.63,0.00022465,2]
[346166838,1734762674537,-565.37,0.00022465,2]
[346166839,1734762674549,-1118.69,0.00022465,2]
[346166840,1734762674559,-1119.59,0.00022465,2]
[346166841,1734762674568,-391.0,0.00022466,2]
[346166842,1734762674577,-150.0,0.00022468,2]
[346166843,1734762674587,-150.0,0.00022469,2]
[346166844,1734762674598,-500.0,0.00022473,2]
[346166845,1734762674766,-500.0,0.00022473,2]
[346166846,1734762674790,-314.74090148,0.00022473,2]
[346166847,1734762674801,-150.0,0.00022473,2]
[346166848,1734762674811,-150.0,0.00022474,2]
[346166849,1734762674820,-150.0,0.00022478,2]
[346166850,1734762674830,-150.0,0.00022482,2]
[346166851,1734762674839,-150.0,0.00022483,2]
[346166852,1734762674848,-1500.0,0.00022483,2]
[346166853,1734762674858,-643.1916769,0.00022485,2]
[346166854,1734762674868,-5458.7825937,0.00022485,2]
[346166855,1734762674878,-2208.7773145,0.00022485,2]
[346166856,1734762674888,-1569.3743578,0.00022485,2]
[346166857,1734762674898,-1917.1576856,0.00022485,2]
[346166858,1734762674907,-150.0,0.00022488,2]
[346166859,1734762674917,-538.36945,0.00022488,7]
[346166860,1734762674927,-500.0,0.00022489,2]
[346166861,1734762674936,-1129.95,0.00022489,2]
[346166862,1734762674945,-945.4,0.00022489,2]
[346166863,1734762674954,-716.68,0.00022489,2]
[346166864,1734762674964,-505.7,0.00022489,2]
[346166865,1734762674974,-878.2,0.00022489,2]
[346166866,1734762674983,-500.0,0.00022489,2]
[346166867,1734762674992,-500.0,0.00022489,2]
[346166868,1734762675001,-500.0,0.00022489,2]
[346166869,1734762675010,-500.0,0.00022489,2]
[346166870,1734762675020,-798.65,0.00022489,2]
[346166871,1734762675029,-651.53,0.00022489,2]
[346166872,1734762675038,-825.6,0.00022489,2]
[346166873,1734762675050,-533.53,0.00022489,2]
[346166874,1734762675059,-500.0,0.00022489,2]
[346166875,1734762675068,-500.0,0.00022489,2]
[346166876,1734762675079,-500.0,0.00022489,2]
[346166877,1734762675088,-661.88,0.00022489,2]
[346166878,1734762675097,-640.6,0.00022489,2]
[346166879,1734762675106,-500.0,0.00022489,2]
[346166880,1734762675115,-500.0,0.00022489,2]
[346166881,1734762675126,-500.0,0.00022489,2]
[346166882,1734762675135,-778.66,0.00022489,2]
[346166883,1734762675144,-299.55767889,0.00022489,2]
[346166884,1734762675154,-725.75,0.00022489,2]
[346166885,1734762675163,-500.0,0.00022489,2]
[346166886,1734762675173,-500.0,0.00022489,2]
[346166887,1734762675183,-500.0,0.00022489,2]
[346166888,1734762675191,-785.03,0.00022489,2]
[346166889,1734762675201,-555.17,0.00022489,2]
[346166890,1734762675210,-500.0,0.00022489,2]
[346166891,1734762675219,-530.93,0.00022489,2]
[346166892,1734762675227,-571.64,0.00022489,2]
[346166893,1734762675236,-824.95,0.00022489,2]
[346166894,1734762675245,-1154.21,0.00022489,2]
[346166895,1734762675255,-505.82,0.00022489,2]
[346166896,1734762675264,-641.5,0.00022489,2]
[346166897,1734762675273,-500.0,0.00022489,2]
[346166898,1734762675282,-500.0,0.00022489,2]
[346166899,1734762675291,-759.47,0.00022489,2]
[346166900,1734762675304,-500.0,0.00022489,2]
[346166901,1734762675313,-719.01,0.00022489,2]
[346166902,1734762675323,-500.0,0.00022489,2]
[346166903,1734762675332,-559.19,0.00022489,2]
[346166904,1734762675342,-643.01,0.00022489,2]
[346166905,1734762675352,-500.0,0.00022489,2]
[346166906,1734762675361,-500.0,0.00022489,2]
[346166907,1734762675370,-500.0,0.00022489,2]
[346166908,1734762675380,-531.7,0.00022489,2]
[346166909,1734762675389,-595.1,0.00022489,2]
[346166910,1734762675398,-500.0,0.00022489,2]
[346166911,1734762675408,-728.88,0.00022489,2]
[346166912,1734762675417,-500.0,0.00022489,2]
[346166913,1734762675426,-500.0,0.00022489,2]
[346166914,1734762675435,-500.0,0.00022489,2]
[346166915,1734762675444,-651.48,0.00022489,2]
[346166916,1734762675454,-1169.52,0.00022489,2]
[346166917,1734762675462,-511.96,0.00022489,2]
[346166918,1734762675471,-1404.37,0.00022489,2]
[346166919,1734762675481,-857.24,0.00022489,2]
[346166920,1734762675492,-623.31,0.00022489,2]
[346166921,1734762675501,-500.0,0.00022489,2]
[346166922,1734762675510,-500.0,0.00022489,2]
[346166923,1734762675520,-717.36,0.00022489,2]
[346166924,1734762675529,-727.07,0.00022489,2]
[346166925,1734762675538,-500.0,0.00022489,2]
[346166926,1734762675549,-1561.63,0.00022489,2]
[346166927,1734762675558,-608.09,0.00022489,2]
[346166928,1734762675567,-500.0,0.00022489,2]
[346166929,1734762675577,-152.502649,0.00022489,2]
[346166930,1734762675588,-795.08,0.00022489,2]
[346166931,1734762675598,-500.0,0.00022489,2]
[346166932,1734762675608,-1607.753683,0.00022489,2]
[346166933,1734762675621,-1328.89,0.00022489,2]
[346166934,1734762675631,-500.0,0.00022489,2]
[346166935,1734762675642,-759.82,0.00022489,2]
[346166936,1734762675653,-500.0,0.00022489,2]
[346166937,1734762675664,-2471.688251,0.00022489,2]
[346166938,1734762675673,-2334.14,0.00022489,2]
[346166939,1734762675682,-1192.55,0.00022489,2]
[346166940,1734762675692,-663.59,0.00022489,2]
[346166941,1734762675702,-500.0,0.00022489,2]
[346166942,1734762675712,-613.61,0.00022489,2]
[346166943,1734762675722,-1857.4,0.00022489,2]
[346166944,1734762675732,-743.67,0.00022489,2]
[346166945,1734762675742,-612.45,0.00022489,2]
[346166946,1734762675753,-1951.38,0.00022489,2]
[346166947,1734762675762,-950.79,0.00022489,2]
[346166948,1734762675772,-388.98,0.00022489,2]
[346166949,1734762675781,-633.8,0.00022489,2]
[346166950,1734762675790,-735.75,0.00022489,2]
[346166951,1734762675801,-157.253545,0.00022489,2]
[346166952,1734762675810,-2439.59,0.00022489,2]
[346166953,1734762675819,-656.72,0.00022489,2]